bitfinex/quotes_SOLUSD_20250305
["timestamp","ask_amount","ask_price","bid_price","bid_amount"]
[1741160727498,18.933972,142.8,142.77,0.033]
[1741160727703,18.933972,142.8,142.7,0.033]
[1741160727704,20.0,142.74,142.7,0.033]
[1741160728001,0.28432314,142.7,142.62,87.03580561]
[1741160728211,33.05757646,142.65,142.62,87.03580561]
[1741160728424,33.05757646,142.64,142.62,1.9339309]
[1741160728814,33.05757646,142.63,142.62,1.9339309]
[1741160729205,51.99154846,142.63,142.53,10.90931375]
[1741160729406,33.05757646,142.58,142.53,10.90931375]
[1741160730405,33.05757646,142.58,142.53,17.92531375]
[1741160730705,33.05757646,142.6,142.54,51.70722532]
[1741160731126,33.05757646,142.61,142.55,33.05757646]
[1741160731359,33.05757646,142.61,142.55,111.14825117]
[1741160731629,33.05757646,142.61,142.56,7.0145]
[1741160731830,33.05757646,142.6,142.56,7.0145]
[1741160734740,33.05757646,142.61,142.56,7.0145]
[1741160734933,33.05757646,142.62,142.56,118.16275117]
[1741160735244,33.05757646,142.62,142.57,18.71588021]
[1741160735430,33.05757646,142.63,142.57,129.86413138]
[1741160735605,33.05757646,142.64,142.58,33.05757646]
[1741160735810,33.05757646,142.64,142.58,111.14825117]
[1741160736235,86.40878965,142.68,142.58,111.14825117]
[1741160736236,33.05757646,142.66,142.6,33.05757646]
[1741160736432,33.05757646,142.68,142.62,33.05757646]
[1741160736629,33.05757646,142.68,142.62,111.14825117]
[1741160736829,33.05757646,142.68,142.63,7.0111]
[1741160737038,33.05757646,142.67,142.63,7.0111]
[1741160738240,33.05757646,142.64,142.57,0.06623135]
[1741160738446,33.05757646,142.58,142.57,0.06623135]
[1741160741443,0.14216157,142.61,142.57,0.06623135]
[1741160741747,33.05757646,142.58,142.57,0.06623135]
[1741160743437,33.05757646,142.59,142.57,0.06623135]
[1741160743833,82.9,142.6,142.57,0.06623135]
[1741160744545,115.95757646,142.6,142.57,0.06623135]
[1741160744724,33.05757646,142.58,142.57,0.06623135]
[1741160745831,40.07117646,142.58,142.57,0.06623135]
[1741160746031,33.05757646,142.58,142.57,0.06623135]
[1741160747741,40.07117646,142.58,142.57,0.06623135]
[1741160748151,40.3554996,142.58,142.57,0.06623135]
[1741160749527,46.8217996,142.58,142.57,0.06623135]
[1741160750944,40.3554996,142.58,142.57,0.06623135]
[1741160751137,33.05757646,142.58,142.57,0.06623135]
[1741160751443,40.07117646,142.58,142.57,0.06623135]
[1741160751848,33.05757646,142.58,142.57,0.06623135]
[1741160752832,33.05757646,142.59,142.57,0.06623135]
[1741160753043,33.05757646,142.6,142.57,0.06623135]
[1741160754249,33.05757646,142.59,142.57,0.06623135]
[1741160754630,82.93,142.62,142.57,0.06623135]
[1741160754832,33.05757646,142.6,142.57,0.06623135]
[1741160755752,33.05757646,142.59,142.57,0.06623135]
[1741160756759,33.05757646,142.58,142.57,0.06623135]
[1741160757242,33.05757646,142.6,142.57,0.06623135]
[1741160758229,33.05757646,142.59,142.57,0.06623135]
[1741160758639,33.05757646,142.6,142.57,0.06623135]
[1741160759051,33.05757646,142.61,142.57,0.06623135]
[1741160759758,33.05757646,142.61,142.57,18.71588021]
[1741160759953,33.05757646,142.6,142.57,18.71588021]
[1741160760138,33.05757646,142.61,142.57,18.71588021]
[1741160760339,115.98757646,142.62,142.57,18.71588021]
[1741160760546,33.08757646,142.62,142.57,18.71588021]
[1741160760859,33.08757646,142.62,142.57,0.06623135]
[1741160761062,33.05757646,142.61,142.57,0.06623135]
[1741160761376,33.05757646,142.61,142.57,18.71588021]
[1741160761664,33.05757646,142.6,142.57,0.06623135]
[1741160761832,33.05757646,142.61,142.57,0.06623135]
[1741160762030,33.05757646,142.61,142.57,18.71588021]
[1741160762227,33.05757646,142.61,142.57,96.80655492]
[1741160764361,33.05757646,142.61,142.57,103.82055492]
[1741160764733,33.05757646,142.59,142.57,78.15690606]
[1741160764938,33.05757646,142.59,142.57,0.06623135]
[1741160765154,33.05757646,142.58,142.57,0.06623135]
[1741160767656,40.07117646,142.58,142.57,0.06623135]
[1741160771276,3.54671084,142.6,142.57,0.06623135]
[1741160771465,33.05757646,142.6,142.57,0.06623135]
[1741160771984,33.05757646,142.59,142.57,0.06623135]
[1741160772881,33.05757646,142.6,142.57,0.06623135]
[1741160773585,33.05757646,142.59,142.57,0.06623135]
[1741160773793,33.05757646,142.58,142.57,0.06623135]
[1741160776085,40.07117646,142.58,142.57,0.06623135]
[1741160778575,27.74711844,142.58,142.57,0.06623135]
[1741160780285,83.18432314,142.57,142.47,8.21052795]
[1741160780480,20.73351844,142.49,142.47,1.63032795]
[1741160780785,20.73351844,142.48,142.47,0.03382795]
[1741160782189,24.57419069,142.48,142.47,0.03382795]
[1741160782578,43.79936814,142.48,142.47,0.03382795]
[1741160784489,3.55634911,142.48,142.47,0.03382795]
[1741160784677,40.24251903,142.49,142.47,0.03382795]
[1741160785190,33.22451903,142.48,142.47,0.03382795]
[1741160785786,43.68999875,142.49,142.47,0.06682795]
[1741160787390,33.22451903,142.48,142.47,0.06682795]
[1741160787791,116.40884217,142.48,142.42,0.033]
[1741160787994,33.22451903,142.43,142.42,0.033]
[1741160788179,33.22451903,142.45,142.42,0.033]
[1741160788489,33.22451903,142.46,142.42,0.033]
[1741160788691,33.22451903,142.48,142.42,118.36949374]
[1741160789769,33.22451903,142.48,142.42,111.34819374]
[1741160790167,33.22451903,142.48,142.42,118.36959374]
[1741160790376,3.44747972,142.49,142.42,118.36959374]
[1741160790377,33.22451903,142.49,142.43,51.87416789]
[1741160790675,33.22451903,142.49,142.43,18.64964886]
[1741160790874,33.22451903,142.49,142.44,33.22451903]
[1741160791676,33.22451903,142.49,142.44,40.24491903]
[1741160791878,33.22451903,142.5,142.45,1.5625]
[1741160792182,33.22451903,142.5,142.45,79.65317471]
[1741160793491,33.22451903,142.5,142.45,86.67277471]
[1741160794421,33.22451903,142.49,142.45,1.5625]
[1741160794899,33.22451903,142.5,142.45,8.5824]
[1741160796097,82.9,142.56,142.46,6.2349]
[1741160796406,86.486466,142.56,142.47,51.87416789]
[1741160796592,33.22451903,142.54,142.48,33.22451903]
[1741160796784,33.22451903,142.53,142.47,51.87416789]
[1741160796986,33.22451903,142.53,142.47,129.9648426]
[1741160798112,0.03,142.5,142.48,7.0185]
[1741160798316,0.03,142.5,142.48,85.10917471]
[1741160800405,0.03,142.5,142.49,58.89216789]
[1741160800909,0.03,142.5,142.49,136.9828426]
[1741160801212,33.22451903,142.57,142.5,1.5842]
[1741160801422,33.22451903,142.56,142.5,112.89939374]
[1741160801709,33.22451903,142.55,142.5,79.67487471]
[1741160802834,33.22451903,142.55,142.5,86.69207471]
[1741160803035,33.22451903,142.54,142.5,86.69207471]
[1741160803633,33.22451903,142.55,142.5,86.69207471]
[1741160803937,33.22451903,142.56,142.5,119.91659374]
[1741160804527,20.73488091,142.56,142.5,107.42695562]
[1741160804708,20.73488091,142.58,142.52,20.73488091]
[1741160804912,20.73488091,142.58,142.52,105.84205562]
[1741160806025,20.73488091,142.58,142.52,85.10717471]
[1741160806225,20.73488091,142.57,142.52,85.10717471]
[1741160808708,20.73488091,142.58,142.52,85.10717471]
[1741160808916,20.73488091,142.6,142.54,27.14538091]
[1741160809140,103.63488091,142.61,142.55,20.73488091]
[1741160809445,20.73488091,142.6,142.55,78.09067471]
[1741160810143,0.03,142.57,142.55,78.09067471]
[1741160811641,0.03,142.57,142.55,85.10547471]
[1741160815441,0.03,142.57,142.55,78.09067471]
[1741160816850,20.76488091,142.57,142.55,78.09067471]
[1741160817153,20.73488091,142.56,142.5,85.75897471]
[1741160817317,20.73488091,142.54,142.5,85.75897471]
[1741160817914,20.73488091,142.54,142.5,79.70787471]
[1741160818714,27.75048091,142.54,142.5,79.70787471]
[1741160820247,7.0156,142.54,142.5,79.70787471]
[1741160820740,20.73488091,142.56,142.51,18.64964886]
[1741160821047,27.74958091,142.56,142.51,18.64964886]
[1741160821247,7.0147,142.56,142.51,96.74032357]
[1741160821945,7.0147,142.56,142.51,78.09067471]
[1741160822252,27.74958091,142.56,142.51,78.09067471]
[1741160823134,27.74958091,142.56,142.51,85.10767471]
[1741160823539,20.76488091,142.57,142.52,18.64964886]
[1741160823737,0.03,142.57,142.52,117.47520448]
[1741160824653,0.03,142.57,142.53,7.016]
[1741160825150,0.03,142.57,142.54,18.64964886]
[1741160825447,0.03,142.57,142.56,20.73488091]
[1741160825648,0.03,142.57,142.56,119.42072762]
[1741160825854,0.03,142.57,142.56,257.82072762]
[1741160826737,0.03,142.57,142.56,264.83522762]
[1741160827136,0.03,142.62,142.59,20.0]
[1741160827338,0.03,142.62,142.6,39.38452977]
[1741160827544,0.03,142.62,142.61,20.73488091]
[1741160827923,0.03,142.62,142.61,39.38452977]
[1741160828130,0.03,142.62,142.61,330.64964886]
[1741160828331,0.03,142.62,142.61,18.64964886]
[1741160828835,0.03,142.62,142.61,25.66174886]
[1741160829037,0.03,142.62,142.61,18.64964886]
[1741160829556,0.03,142.62,142.61,46.39662977]
[1741160829855,0.03,142.62,142.61,46.68095291]
[1741160830240,20.76488091,142.7,142.65,18.64964886]
[1741160830842,20.76488091,142.7,142.65,25.65954886]
[1741160831450,27.77258091,142.7,142.65,25.65954886]
[1741160831661,20.76488091,142.7,142.65,25.65954886]
[1741160832359,0.03,142.7,142.66,20.73488091]
[1741160832930,0.03,142.7,142.68,18.64964886]
[1741160833158,20.76488091,142.7,142.67,78.09067471]
[1741160833532,20.73488091,142.69,142.67,78.09067471]
[1741160833853,20.76488091,142.7,142.67,78.09067471]
[1741160834259,0.03,142.7,142.68,18.64964886]
[1741160834842,0.03,142.7,142.68,124.48350448]
[1741160835057,0.03,142.7,142.69,20.73488091]
[1741160835757,0.03,142.7,142.68,125.99660448]
[1741160836962,0.03,142.7,142.69,39.66885291]
[1741160837156,0.0001,142.7,142.69,45.12885291]
[1741160837331,0.03,142.72,142.7,18.933972]
[1741160837535,0.03,142.72,142.71,39.38452977]
[1741160837746,0.03,142.72,142.71,255.87520448]
[1741160837945,0.03,142.72,142.71,567.87520448]
[1741160838756,0.03,142.72,142.71,574.88240448]
[1741160839973,0.0001,142.72,142.71,575.16672762]
[1741160840154,0.03,142.77,142.76,18.79181043]
[1741160840356,0.03,142.77,142.76,256.01736605]
[1741160841266,0.03,142.77,142.76,263.16422762]
[1741160842966,20.76488091,142.85,142.76,280.67612762]
[1741160843158,20.76488091,142.85,142.8,18.64964886]
[1741160843474,0.03,142.85,142.8,408.74032357]
[1741160844049,20.76488091,142.85,142.8,408.74032357]
[1741160844670,20.76488091,142.85,142.8,390.09067471]
[1741160844877,20.73488091,142.84,142.8,78.09067471]
[1741160845049,20.73488091,142.83,142.8,78.09067471]
[1741160845970,20.73488091,142.82,142.77,96.74032357]
[1741160846171,20.73488091,142.81,142.77,78.09067471]
[1741160846547,20.73488091,142.83,142.77,85.09487471]
[1741160846850,20.73488091,142.82,142.77,78.09067471]
[1741160847051,20.73488091,142.8,142.75,78.09067471]
[1741160847251,20.73488091,142.79,142.75,78.09067471]
[1741160849278,27.73728091,142.81,142.76,18.64964886]
[1741160850278,20.73488091,142.79,142.75,78.09067471]
[1741160851361,27.73768091,142.8,142.75,85.09587471]
[1741160852873,20.73488091,142.78,142.75,78.09067471]
[1741160853051,20.73488091,142.77,142.75,78.09067471]
[1741160854179,20.73488091,142.78,142.75,78.09067471]
[1741160854975,20.73488091,142.79,142.75,78.09067471]
[1741160855479,20.73488091,142.78,142.75,78.09067471]
[1741160856882,27.73878091,142.78,142.73,7.0061]
[1741160858382,27.73878091,142.78,142.75,0.033]
[1741160859080,27.73808091,142.79,142.75,0.033]
[1741160860070,20.73488091,142.77,142.75,0.033]
[1741160860271,20.73488091,142.76,142.75,0.033]
[1741160860873,20.73488091,142.77,142.75,0.033]
[1741160861371,27.73948091,142.77,142.75,0.033]
[1741160862571,7.0046,142.77,142.75,0.033]
[1741160862874,82.93,142.8,142.75,0.033]
[1741160862875,27.76778091,142.8,142.75,0.033]
[1741160863081,0.03,142.8,142.75,20.76788091]
[1741160863484,0.03,142.8,142.76,18.64964886]
[1741160864064,20.76488091,142.8,142.75,85.12877471]
[1741160864988,20.73488091,142.79,142.75,78.12367471]
[1741160866087,27.76788091,142.8,142.75,85.12887471]
[1741160866260,20.76488091,142.8,142.75,85.12887471]
[1741160866678,0.03,142.8,142.76,18.64964886]
[1741160866984,27.76768091,142.8,142.76,18.64964886]
[1741160867162,27.76768091,142.8,142.75,78.12367471]
[1741160867587,27.76768091,142.8,142.75,85.12877471]
[1741160867880,20.73488091,142.79,142.75,85.12877471]
[1741160868958,27.76768091,142.8,142.75,85.12877471]
[1741160871078,20.76488091,142.8,142.75,85.12877471]
[1741160871972,27.76768091,142.8,142.75,85.12877471]
[1741160872286,20.76488091,142.8,142.75,85.12877471]
[1741160872784,13.2564774,142.8,142.75,85.12877471]
[1741160873388,13.2564774,142.8,142.75,78.12367471]
[1741160873389,13.2264774,142.79,142.75,78.12367471]
[1741160873687,13.2264774,142.77,142.75,0.033]
[1741160873893,13.2264774,142.76,142.75,0.033]
[1741160875869,7.0047,142.76,142.75,0.033]
[1741160876291,20.2311774,142.76,142.75,0.033]
[1741160877912,13.2264774,142.76,142.75,0.033]
[1741160879815,23.73527647,142.77,142.75,0.033]
[1741160880007,13.2264774,142.76,142.75,0.033]
[1741160881116,16.73107647,142.77,142.75,0.033]
[1741160881321,13.2264774,142.79,142.75,0.033]
[1741160881531,13.2264774,142.78,142.75,0.033]
[1741160881709,13.2264774,142.76,142.75,0.033]
[1741160882011,13.2264774,142.77,142.75,0.033]
[1741160882999,13.2264774,142.78,142.75,0.033]
[1741160883216,13.2264774,142.79,142.75,0.033]
[1741160883715,13.2564774,142.8,142.75,96.77332357]
[1741160884294,13.2564774,142.8,142.75,109.99980097]
[1741160884295,0.03,142.8,142.75,109.99980097]
[1741160884507,0.03,142.8,142.76,20.2311774]
[1741160885099,0.03,142.8,142.78,13.2264774]
[1741160885292,0.03,142.8,142.79,13.2264774]
[1741160886428,0.03,142.8,142.79,109.96680097]
[1741160886597,0.03,142.8,142.79,124.39231716]
[1741160886921,0.03,142.8,142.79,263.0766403]
[1741160889228,0.03,142.85,142.8,25.14044886]
[1741160889398,0.03,142.85,142.84,18.64964886]
[1741160889594,0.03,142.85,142.84,96.74032357]
[1741160889829,0.03,142.85,142.84,78.09067471]
[1741160891840,0.03,142.85,142.84,103.74112357]
[1741160892193,0.03,142.85,142.84,126.2249403]
[1741160892393,20.64879359,142.93,142.85,18.933972]
[1741160892696,20.64879359,142.93,142.88,18.64964886]
[1741160892894,20.64879359,142.93,142.88,96.74032357]
[1741160893111,20.64879359,142.93,142.88,78.09067471]
[1741160893526,20.64879359,142.91,142.88,78.09067471]
[1741160893733,20.64879359,142.89,142.84,79.64137471]
[1741160893929,110.57479359,142.94,142.84,79.64137471]
[1741160893930,20.64879359,142.88,142.84,79.64137471]
[1741160894431,20.64879359,142.88,142.83,5.38]
[1741160895306,20.64879359,142.88,142.84,18.64964886]
[1741160895924,20.64879359,142.88,142.83,5.38]
[1741160896506,20.64879359,142.87,142.83,5.38]
[1741160898027,20.64879359,142.88,142.83,5.38]
[1741160898214,27.64809359,142.88,142.83,5.38]
[1741160899429,3.58718556,142.9,142.84,18.64964886]
[1741160899430,20.64879359,142.89,142.84,18.64964886]
[1741160899740,27.67549359,142.93,142.87,20.64879359]
[1741160900230,20.67879359,142.93,142.87,105.7384683]
[1741160900424,0.03,142.93,142.88,20.64879359]
[1741160900806,7.0264,142.93,142.88,20.64879359]
[1741160901828,20.64879359,142.9,142.87,78.09067471]
[1741160902029,20.64879359,142.88,142.85,96.74032357]
[1741160902242,20.64879359,142.88,142.85,78.09067471]
[1741160903032,20.64879359,142.89,142.85,78.09067471]
[1741160903409,20.64879359,142.88,142.85,78.09067471]
[1741160903728,20.64879359,142.88,142.83,1.5793]
[1741160903928,27.64809359,142.87,142.83,1.5793]
[1741160904229,20.64879359,142.87,142.83,1.5793]
[1741160904437,20.64879359,142.88,142.83,27.23014886]
[1741160904934,19.14879359,142.88,142.83,27.23014886]
[1741160905125,82.9,142.91,142.84,18.64964886]
[1741160905300,20.64879359,142.89,142.84,96.74032357]
[1741160905929,89.8975,142.91,142.84,78.09067471]
[1741160905930,20.64879359,142.87,142.84,78.09067471]
[1741160906105,27.64849359,142.87,142.83,1.5793]
[1741160907608,20.64879359,142.86,142.82,78.09067471]
[1741160908107,27.64909359,142.86,142.82,78.09067471]
[1741160908527,20.64879359,142.85,142.82,78.09067471]
[1741160908743,27.64909359,142.86,142.82,78.09067471]
[1741160909124,20.64879359,142.86,142.82,78.09067471]
[1741160909320,20.64879359,142.88,142.82,105.7411683]
[1741160909811,20.64879359,142.87,142.82,78.09067471]
[1741160910737,27.64859359,142.86,142.82,78.09067471]
[1741160911040,20.64879359,142.84,142.8,78.09067471]
[1741160911836,20.64879359,142.83,142.8,78.09067471]
[1741160912207,20.64879359,142.84,142.8,78.09067471]
[1741160912821,27.64959359,142.84,142.8,78.09067471]
[1741160914435,20.64879359,142.84,142.8,85.09327471]
[1741160914641,82.9,142.87,142.8,85.09327471]
[1741160914642,20.64879359,142.86,142.8,105.7420683]
[1741160914839,20.64879359,142.86,142.81,39.29844245]
[1741160915213,20.64879359,142.83,142.8,78.09067471]
[1741160915418,20.64879359,142.84,142.79,1.5874]
[1741160915926,20.64879359,142.83,142.77,105.7435683]
[1741160916330,27.64969359,142.84,142.78,39.29844245]
[1741160916949,20.64879359,142.83,142.77,105.7435683]
[1741160918348,7.0018,142.82,142.77,105.7435683]
[1741160918651,27.65029359,142.83,142.77,105.7435683]
[1741160918852,31.14458943,142.84,142.78,20.64879359]
[1741160919748,24.14348943,142.84,142.78,20.68179359]
[1741160920250,3.49469584,142.84,142.79,20.64879359]
[1741160920447,103.54879359,142.85,142.79,20.64879359]
[1741160920627,103.54879359,142.85,142.8,18.64964886]
[1741160920828,20.64879359,142.87,142.81,20.64879359]
[1741160922148,20.03,142.88,142.81,20.64879359]
[1741160922454,20.64879359,142.86,142.82,7.0018]
[1741160922653,20.64879359,142.86,142.81,85.09277471]
[1741160923233,20.64879359,142.85,142.81,78.09067471]
[1741160923432,20.64879359,142.83,142.78,216.52367471]
[1741160923737,20.64879359,142.83,142.78,78.12367471]
[1741160924062,20.64879359,142.83,142.78,85.12737471]
[1741160924359,27.64979359,142.84,142.78,105.7761683]
[1741160925770,20.64879359,142.84,142.78,105.7761683]
[1741160925948,103.54879359,142.86,142.8,20.64879359]
[1741160926150,27.64869359,142.86,142.8,98.7394683]
[1741160926464,27.64869359,142.86,142.8,410.7394683]
[1741160927356,20.64879359,142.85,142.8,417.7418683]
[1741160927562,20.64879359,142.85,142.8,397.09307471]
[1741160927936,6.9993,142.87,142.8,397.09307471]
[1741160928230,20.64879359,142.86,142.8,417.7418683]
[1741160929165,20.64879359,142.85,142.8,85.09307471]
[1741160930256,27.64879359,142.86,142.8,105.7418683]
[1741160931956,20.64879359,142.86,142.81,25.65174886]
[1741160933069,20.64879359,142.85,142.81,7.0021]
[1741160933872,20.64879359,142.83,142.8,78.09067471]
[1741160934167,27.65009359,142.83,142.8,78.09067471]
[1741160935945,20.64879359,142.83,142.8,78.09067471]
[1741160936265,19.64879359,142.84,142.8,78.09067471]
[1741160936469,20.64879359,142.86,142.81,18.64964886]
[1741160936777,20.64879359,142.86,142.81,96.74032357]
[1741160937646,20.64879359,142.86,142.81,103.74232357]
[1741160937845,20.64879359,142.85,142.81,103.74232357]
[1741160938056,20.64879359,142.86,142.81,103.74232357]
[1741160940263,0.03,142.88,142.83,18.64964886]
[1741160940671,20.64879359,142.87,142.83,18.64964886]
[1741160941168,20.67879359,142.88,142.83,18.64964886]
[1741160941378,20.64879359,142.87,142.84,7.0008]
[1741160941682,20.64879359,142.86,142.83,78.09067471]
[1741160942676,20.64879359,142.87,142.83,85.09187471]
[1741160942977,20.67879359,142.88,142.83,85.09187471]
[1741160943273,20.64879359,142.87,142.83,85.09187471]
[1741160944092,27.64819359,142.87,142.83,78.09067471]
[1741160944754,20.64879359,142.86,142.83,78.09067471]
[1741160945261,27.64819359,142.87,142.83,78.09067471]
[1741160945657,27.64819359,142.87,142.83,78.12367471]
[1741160945985,27.67819359,142.87,142.83,78.12367471]
[1741160946278,27.67819359,142.87,142.83,0.033]
[1741160948561,13.21387199,142.86,142.83,0.033]
[1741160950278,13.24387199,142.87,142.83,0.033]
[1741160951890,13.21387199,142.86,142.83,0.033]
[1741160953183,13.21387199,142.84,142.83,0.033]
[1741160954091,13.21387199,142.85,142.83,0.033]
[1741160954273,96.11387199,142.86,142.83,0.033]
[1741160954472,13.21387199,142.86,142.83,0.033]
[1741160958192,13.24387199,142.87,142.83,0.033]
[1741160962884,20.24327199,142.87,142.83,0.033]
[1741160963185,13.24387199,142.87,142.83,0.033]
[1741160963387,13.21387199,142.86,142.83,0.033]
[1741160965699,20.21367199,142.86,142.83,0.033]
[1741160966400,13.21387199,142.86,142.83,0.033]
[1741160966690,13.24387199,142.87,142.83,0.033]
[1741160966870,13.21387199,142.86,142.83,0.033]
[1741160967369,13.21387199,142.85,142.83,0.033]
[1741160967575,20.21467199,142.84,142.83,0.033]
[1741160969402,13.21387199,142.84,142.83,0.033]
[1741160969582,96.11387199,142.86,142.83,0.033]
[1741160970407,13.21387199,142.85,142.83,0.033]
[1741160970611,13.21387199,142.84,142.83,0.033]
[1741160972672,89.9,142.86,142.83,0.033]
[1741160972881,13.24387199,142.87,142.83,0.033]
[1741160974094,0.03,142.87,142.84,18.64964886]
[1741160974273,0.03,142.87,142.84,20.18654886]
[1741160975809,0.03,142.87,142.84,27.18714886]
[1741160976507,0.03,142.87,142.84,105.27782357]
[1741160977510,0.03,142.87,142.84,118.49169556]
[1741160978308,0.03,142.87,142.86,18.64964886]
[1741160978507,0.03,142.87,142.86,109.95419556]
[1741160979802,0.03,142.87,142.86,116.95399556]
[1741160980201,0.03,142.88,142.87,25.218872]
[1741160980513,0.03,142.88,142.87,92.89393195]
[1741160981310,0.03,142.88,142.87,411.89323195]
[1741160981716,0.03,142.88,142.87,359.03774399]
[1741160982215,0.03,142.88,142.87,351.14714399]
[1741160982418,0.03,142.88,142.87,38.86282085]
[1741160983223,0.03,142.88,142.86,98.3042467]
[1741160984094,0.03,142.88,142.87,13.21387199]
[1741160984619,0.03,142.88,142.87,20.21317199]
[1741160984790,0.03,142.88,142.87,38.86282085]
[1741160985515,0.03,142.88,142.87,350.86282085]
[1741160987897,0.03,142.88,142.87,38.86282085]
[1741160990315,0.03,142.88,142.87,25.64894886]
[1741160990520,0.03,142.88,142.87,38.86282085]
[1741160990697,0.03,142.88,142.87,116.95349556]
[1741160994430,0.03,142.88,142.87,428.95349556]
[1741160994796,0.03,142.88,142.87,116.95349556]
[1741160995115,0.03,142.88,142.87,96.74032357]
[1741160995519,0.03,142.88,142.87,103.77262357]
[1741160996407,0.03,142.88,142.87,116.98649556]
[1741160997812,0.03,142.88,142.87,428.98649556]
[1741160998014,0.03,142.88,142.87,429.2708187]
[1741160998518,0.03,142.88,142.87,567.6708187]
[1741160998699,0.03,142.93,142.9,13.21387199]
[1741160998896,0.03,142.93,142.9,91.3045467]
[1741160999312,0.03,142.93,142.91,6.9974]
[1741161002108,0.03,142.93,142.92,18.64964886]
[1741161002500,0.03,142.93,142.92,96.74032357]
[1741161003825,0.03,142.93,142.92,103.73722357]
[1741161004031,0.03,142.93,142.92,78.09067471]
[1741161004523,13.24387199,142.93,142.92,78.09067471]
[1741161005316,0.03,142.93,142.92,78.09067471]
[1741161006018,0.03,142.93,142.92,85.08757471]
[1741161006836,0.03,142.93,142.92,78.09067471]
[1741161008428,0.03,142.93,142.9,223.48837471]
[1741161009330,0.03,142.93,142.91,18.64964886]
[1741161010029,0.03,142.93,142.91,96.74032357]
[1741161010230,0.03,142.94,142.92,13.49819513]
[1741161010426,0.03,142.94,142.93,13.21387199]
[1741161010608,0.03,142.94,142.93,91.3045467]
[1741161011013,0.03,142.94,142.93,390.09067471]
[1741161011234,0.03,142.94,142.93,85.08707471]
[1741161013537,0.03,142.94,142.93,78.09067471]
[1741161013839,0.03,142.94,142.9,85.08837471]
[1741161015137,0.03,142.94,142.9,98.3022467]
[1741161015729,0.03,142.94,142.92,13.21387199]
[1741161016029,0.03,142.94,142.93,18.64964886]
[1741161016210,0.03,142.94,142.91,78.09067471]
[1741161017143,0.03,142.94,142.91,85.08787471]
[1741161018242,0.03,142.94,142.92,18.64964886]
[1741161018539,0.03,142.94,142.93,13.21387199]
[1741161018717,0.03,142.94,142.93,325.21387199]
[1741161019208,0.03,142.94,142.93,332.21027199]
[1741161020321,0.03,142.94,142.93,429.2349187]
[1741161020950,0.03,142.94,142.93,567.6349187]
[1741161022143,0.03,142.94,142.93,255.6349187]
[1741161023838,0.03,142.94,142.93,255.35059556]
[1741161024840,0.03,142.94,142.93,255.6349187]
[1741161025027,0.03,142.94,142.93,567.6349187]
[1741161025745,0.0001,142.94,142.93,567.6349187]
[1741161028640,0.0001,142.94,142.93,572.9549187]
[1741161028817,0.0001,142.95,142.94,18.64964886]
[1741161029025,0.0001,142.95,142.94,31.86352085]
[1741161029439,7.175e-05,143.12,143.09,21.22216157]
[1741161029629,7.175e-05,143.12,143.11,13.49819513]
[1741161030028,42.90052995,143.13,143.11,13.49819513]
[1741161030219,7.28552995,143.13,143.12,32.14784399]
[1741161030418,7.28552995,143.13,143.12,39.13494399]
[1741161030419,2.995e-05,143.13,143.12,39.13494399]
[1741161030647,2.995e-05,143.13,143.12,46.4662723]
[1741161032216,1.5915,143.23,143.16,18.64964886]
[1741161032422,22.1367003,143.23,143.17,6.9847]
[1741161032616,22.1367003,143.23,143.17,27.5299003]
[1741161032843,1.5915,143.23,143.18,39.19484916]
[1741161033048,6.5811,143.24,143.18,39.19484916]
[1741161033948,27.1263003,143.24,143.18,20.5452003]
[1741161034127,27.1263003,143.24,143.17,6.9847]
[1741161034128,20.5452003,143.22,143.17,6.9847]
[1741161034634,27.1263003,143.24,143.18,6.9842]
[1741161034835,11.53658571,143.27,143.18,27.5294003]
[1741161035044,20.5452003,143.24,143.18,6.9842]
[1741161035252,20.5452003,143.23,143.18,6.9842]
[1741161035549,20.5452003,143.24,143.18,27.5294003]
[1741161037452,103.4452003,143.26,143.2,20.5452003]
[1741161037638,82.9,143.26,143.2,20.5452003]
[1741161037834,103.4452003,143.26,143.2,20.5452003]
[1741161038238,20.5452003,143.26,143.2,20.5452003]
[1741161038449,28.6049003,143.27,143.21,46.17754916]
[1741161039048,8.0597,143.27,143.21,46.17754916]
[1741161039740,6.4112,143.27,143.21,46.17754916]
[1741161040253,26.9564003,143.27,143.2,27.5283003]
[1741161040461,20.5452003,143.26,143.21,18.64964886]
[1741161040756,20.5452003,143.24,143.19,10.90931375]
[1741161040955,6.9793,143.28,143.19,29.55896261]
[1741161041127,6.9793,143.28,143.19,10.90931375]